[Event "Early-Titled-Tuesday-Blitz-February-13-2024"]
[Site "Chess.com"]
[Date "2024.02.13"]
[Round "7"]
[White "Canal_Showdrez"]
[Black "arnash_bauyrzhan"]
[Result "1-0"]
[WhiteElo "2085"]
[BlackElo "2248"]
[TimeControl "180+1"]
[EndTime "9:21:34 PST"]
[Termination "Canal_Showdrez won by resignation"]

1. d4 {[%clk 0:00:44.6]} 1... d5 {[%clk 0:02:56.8]} 2. Nf3 {[%clk 0:00:42.5]}
2... Nf6 {[%clk 0:02:56.3]} 3. e3 {[%clk 0:00:32.5]} 3... e6 {[%clk 0:02:56.6]}
4. Bd3 {[%clk 0:00:33.1]} 4... Be7 {[%clk 0:02:57]} 5. c3 {[%clk 0:00:33.7]}
5... O-O {[%clk 0:02:56.9]} 6. Nbd2 {[%clk 0:00:34.6]} 6... b6 {[%clk
0:02:57.2]} 7. O-O {[%clk 0:00:34.6]} 7... Bb7 {[%clk 0:02:57.5]} 8. Ne5 {[%clk
0:00:35.2]} 8... Nbd7 {[%clk 0:02:57.4]} 9. f4 {[%clk 0:00:35.5]} 9... c5 {[%clk
0:02:57.5]} 10. Qf3 {[%clk 0:00:34]} 10... a6 {[%clk 0:02:31.7]} 11. g4 {[%clk
0:00:33.7]} 11... Nxe5 {[%clk 0:02:28.5]} 12. fxe5 {[%clk 0:00:33]} 12... Nd7
{[%clk 0:02:29]} 13. Qh3 {[%clk 0:00:31]} 13... h6 {[%clk 0:02:23.5]} 14. Nf3
{[%clk 0:00:28.8]} 14... b5 {[%clk 0:01:58]} 15. Kh1 {[%clk 0:00:27]} 15... b4
{[%clk 0:01:56.7]} 16. Rg1 {[%clk 0:00:26.6]} 16... Bg5 {[%clk 0:01:19.4]} 17.
Bd2 {[%clk 0:00:24.3]} 17... cxd4 {[%clk 0:01:05.1]} 18. cxd4 {[%clk 0:00:23.4]}
18... a5 {[%clk 0:01:01.2]} 19. Qg3 {[%clk 0:00:20]} 19... Ba6 {[%clk
0:00:48.6]} 20. Bc2 {[%clk 0:00:16]} 20... Be2 {[%clk 0:00:45.1]} 21. Nxg5
{[%clk 0:00:14.6]} 21... Qxg5 {[%clk 0:00:44]} 22. h4 {[%clk 0:00:14.7]} 22...
Qe7 {[%clk 0:00:36]} 23. Rg2 {[%clk 0:00:15.1]} 23... Rac8 {[%clk 0:00:32.6]}
24. Rc1 {[%clk 0:00:13.8]} 24... Bb5 {[%clk 0:00:22.9]} 25. e4 {[%clk
0:00:13.4]} 25... dxe4 {[%clk 0:00:20.8]} 26. g5 {[%clk 0:00:13.2]} 26... h5
{[%clk 0:00:18.3]} 27. g6 {[%clk 0:00:11.6]} 27... Bd3 {[%clk 0:00:13.7]} 28.
Bxd3 {[%clk 0:00:11]} 28... Rxc1+ {[%clk 0:00:10.3]} 29. Bxc1 {[%clk 0:00:10.8]}
29... exd3 {[%clk 0:00:10.8]} 30. Qxd3 {[%clk 0:00:10.9]} 30... f6 {[%clk
0:00:10.3]} 31. Qd2 {[%clk 0:00:10.3]} 31... fxe5 {[%clk 0:00:09.5]} 32. Qd1
{[%clk 0:00:10.6]} 32... exd4 {[%clk 0:00:09.4]} 33. Qxh5 {[%clk 0:00:10.5]}
33... Rf1+ {[%clk 0:00:08.1]} 34. Rg1 {[%clk 0:00:11.1]} 34... Rxg1+ {[%clk
0:00:06.9]} 35. Kxg1 {[%clk 0:00:12]} 35... Qf6 {[%clk 0:00:07]} 36. Qh7+ {[%clk
0:00:11.9]} 36... Kf8 {[%clk 0:00:07.5]} 37. Qh8+ {[%clk 0:00:12.4]} 37... Ke7
{[%clk 0:00:08.1]} 38. Bg5 {[%clk 0:00:12.1]} 38... Qxg5+ {[%clk 0:00:07.1]} 39.
hxg5 {[%clk 0:00:13]} 39... Kd6 {[%clk 0:00:06.7]} 40. Qxg7 {[%clk 0:00:13.1]}
40... d3 {[%clk 0:00:06.5]} 41. Qd4+ {[%clk 0:00:13.4]} 41... Ke7 {[%clk
0:00:05.7]} 42. Qxd3 {[%clk 0:00:14.3]} 42... Ne5 {[%clk 0:00:05.1]} 43. Qe3
{[%clk 0:00:14.6]} 43... Nxg6 {[%clk 0:00:05.2]} 44. Qa7+ {[%clk 0:00:14.7]}
44... Kd6 {[%clk 0:00:05.1]} 45. Qxa5 {[%clk 0:00:15.6]} 45... e5 {[%clk
0:00:04.2]} 46. Qa6+ {[%clk 0:00:16.5]} 46... Kd5 {[%clk 0:00:03.8]} 47. Qxg6
{[%clk 0:00:17.4]} 47... Kd4 {[%clk 0:00:04]} 48. Qf5 {[%clk 0:00:17.6]} 48...
e4 {[%clk 0:00:04.6]} 49. g6 {[%clk 0:00:18.2]} 49... e3 {[%clk 0:00:04.5]} 50.
Qf1 {[%clk 0:00:18]} 50... e2 {[%clk 0:00:02.3]} 51. Qxe2 {[%clk 0:00:18.9]}
51... b3 {[%clk 0:00:03.1]} 52. g7 {[%clk 0:00:19.4]} 52... bxa2 {[%clk
0:00:03.1]} 53. g8=Q {[%clk 0:00:20]} 53... a1=Q+ {[%clk 0:00:03.5]} 54. Qf1
{[%clk 0:00:20.4]} 54... Qa7 {[%clk 0:00:02.7]} 55. Qf2+ {[%clk 0:00:19.9]}
55... Kd3 {[%clk 0:00:03.4]} 56. Qxa7 {[%clk 0:00:20.4]} 56... Kc2 {[%clk
0:00:03.5]} 57. b4 {[%clk 0:00:20.9]} 57... Kb1 {[%clk 0:00:04.4]} 58. b5 {[%clk
0:00:21.4]} 58... Kb2 {[%clk 0:00:05.3]} 59. b6 {[%clk 0:00:22]} 1-0

[Event "Early-Titled-Tuesday-Blitz-February-13-2024"]
[Site "Chess.com"]
[Date "2024.02.13"]
[Round "7"]
[White "bylavochka"]
[Black "ansko1999"]
[Result "0-1"]
[WhiteElo "2318"]
[BlackElo "2658"]
[TimeControl "180+1"]
[EndTime "9:21:41 PST"]
[Termination "ansko1999 won by resignation"]

1. e4 {[%clk 0:03:00.9]} 1... d6 {[%clk 0:02:59]} 2. d4 {[%clk 0:03:01]} 2...
Nf6 {[%clk 0:02:59.1]} 3. Nc3 {[%clk 0:03:01]} 3... c6 {[%clk 0:02:59.3]} 4. Bg5
{[%clk 0:02:56.2]} 4... Nbd7 {[%clk 0:02:57]} 5. Qd2 {[%clk 0:02:53.4]} 5... e5
{[%clk 0:02:54.3]} 6. dxe5 {[%clk 0:02:50]} 6... dxe5 {[%clk 0:02:55.2]} 7.
O-O-O {[%clk 0:02:50.1]} 7... Be7 {[%clk 0:02:53.8]} 8. Nf3 {[%clk 0:02:40]}
8... Qc7 {[%clk 0:02:52.8]} 9. Nh4 {[%clk 0:02:26.3]} 9... h6 {[%clk 0:02:46.6]}
10. Be3 {[%clk 0:02:18.7]} 10... Ng4 {[%clk 0:02:26.6]} 11. Nf5 {[%clk
0:02:17.1]} 11... Nxe3 {[%clk 0:02:26]} 12. fxe3 {[%clk 0:02:02.2]} 12... Bf8
{[%clk 0:02:00.1]} 13. Bc4 {[%clk 0:01:57.5]} 13... Nb6 {[%clk 0:01:51]} 14. Bb3
{[%clk 0:01:56.5]} 14... Bxf5 {[%clk 0:01:44.3]} 15. exf5 {[%clk 0:01:51.6]}
15... Be7 {[%clk 0:01:42.4]} 16. Ne4 {[%clk 0:01:46.3]} 16... Rd8 {[%clk
0:01:34.9]} 17. Qe2 {[%clk 0:01:42.3]} 17... Nd5 {[%clk 0:01:33.7]} 18. h4
{[%clk 0:01:20.5]} 18... Qb6 {[%clk 0:01:22.9]} 19. Rh3 {[%clk 0:01:11.8]} 19...
Nf6 {[%clk 0:01:13.6]} 20. Nxf6+ {[%clk 0:01:07]} 20... Bxf6 {[%clk 0:01:13]}
21. Qh5 {[%clk 0:00:54.7]} 21... Rxd1+ {[%clk 0:01:06.8]} 22. Kxd1 {[%clk
0:00:48.9]} 22... Qd8+ {[%clk 0:00:58.9]} 23. Kc1 {[%clk 0:00:44.9]} 23... Qe7
{[%clk 0:00:55.9]} 24. e4 {[%clk 0:00:29.3]} 24... a5 {[%clk 0:00:46.4]} 25. a4
{[%clk 0:00:26.4]} 25... Rf8 {[%clk 0:00:21.7]} 26. Kb1 {[%clk 0:00:26.1]} 26...
Qc5 {[%clk 0:00:20.6]} 27. g4 {[%clk 0:00:18.3]} 27... Qg1+ {[%clk 0:00:17.2]}
28. Ka2 {[%clk 0:00:17.5]} 28... Qd1 {[%clk 0:00:16]} 29. Rd3 {[%clk 0:00:13.2]}
29... Qe2 {[%clk 0:00:16.2]} 30. Rd6 {[%clk 0:00:08.9]} 30... Ke7 {[%clk
0:00:15.6]} 31. Rd3 {[%clk 0:00:05.5]} 31... Qxe4 {[%clk 0:00:15.4]} 32. g5
{[%clk 0:00:05.8]} 32... hxg5 {[%clk 0:00:10]} 33. hxg5 {[%clk 0:00:05.5]} 33...
b5 {[%clk 0:00:06.8]} 34. gxf6+ {[%clk 0:00:05.4]} 34... gxf6 {[%clk 0:00:07.5]}
35. axb5 {[%clk 0:00:04.2]} 35... a4 {[%clk 0:00:08]} 36. Bxa4 {[%clk
0:00:02.2]} 36... Qxa4+ {[%clk 0:00:07.4]} 37. Ra3 {[%clk 0:00:03.1]} 37... Qc4+
{[%clk 0:00:07.3]} 38. Kb1 {[%clk 0:00:03.8]} 38... Qf1+ {[%clk 0:00:05.9]} 39.
Ka2 {[%clk 0:00:03.9]} 39... Qc4+ {[%clk 0:00:06.5]} 40. Kb1 {[%clk 0:00:04.2]}
40... Qf1+ {[%clk 0:00:04.2]} 41. Ka2 {[%clk 0:00:03.4]} 41... Qxb5 {[%clk
0:00:04.6]} 42. Ra7+ {[%clk 0:00:03.2]} 42... Kd6 {[%clk 0:00:04.9]} 43. Qd1+
{[%clk 0:00:02.8]} 43... Qd5+ {[%clk 0:00:05]} 44. Qxd5+ {[%clk 0:00:03.4]}
44... Kxd5 {[%clk 0:00:02.9]} 45. b4 {[%clk 0:00:01.7]} 45... e4 {[%clk
0:00:03.5]} 46. Kb3 {[%clk 0:00:01.8]} 46... e3 {[%clk 0:00:03.6]} 47. Re7
{[%clk 0:00:02.5]} 47... Kd4 {[%clk 0:00:02.7]} 48. c3+ {[%clk 0:00:02.5]} 48...
Kd3 {[%clk 0:00:03.3]} 49. c4 {[%clk 0:00:03.1]} 49... e2 {[%clk 0:00:03.5]} 50.
b5 {[%clk 0:00:03.5]} 50... cxb5 {[%clk 0:00:03.5]} 51. cxb5 {[%clk 0:00:04.4]}
51... Kd2 {[%clk 0:00:04.1]} 52. Rd7+ {[%clk 0:00:03.6]} 52... Ke1 {[%clk
0:00:04.6]} 53. Re7 {[%clk 0:00:03.9]} 53... Kf2 {[%clk 0:00:05.1]} 54. b6
{[%clk 0:00:03.5]} 54... e1=Q {[%clk 0:00:05.5]} 55. Rxe1 {[%clk 0:00:04.1]}
55... Kxe1 {[%clk 0:00:06.4]} 56. Kc4 {[%clk 0:00:04.6]} 56... Rb8 {[%clk
0:00:07.1]} 57. Kc5 {[%clk 0:00:05.2]} 57... Kf2 {[%clk 0:00:07.2]} 58. Kc6
{[%clk 0:00:05.7]} 58... Kf3 {[%clk 0:00:07.8]} 59. Kc7 {[%clk 0:00:06.2]} 59...
Rf8 {[%clk 0:00:08.2]} 60. b7 {[%clk 0:00:06.4]} 60... Kf4 {[%clk 0:00:08.9]}
61. b8=Q {[%clk 0:00:05.9]} 61... Rxb8 {[%clk 0:00:09.6]} 62. Kxb8 {[%clk
0:00:06.8]} 62... Kxf5 {[%clk 0:00:10.3]} 63. Kc8 {[%clk 0:00:06.7]} 63... Ke6
{[%clk 0:00:11]} 64. Kd8 {[%clk 0:00:06.9]} 64... f5 {[%clk 0:00:11.9]} 65. Ke8
{[%clk 0:00:07.8]} 65... f4 {[%clk 0:00:12.8]} 0-1

[Event "Early-Titled-Tuesday-Blitz-February-13-2024"]
[Site "Chess.com"]
[Date "2024.02.13"]
[Round "7"]
[White "JonaszBaum"]
[Black "Igor_Lysyj"]
[Result "0-1"]
[WhiteElo "2655"]
[BlackElo "2860"]
[TimeControl "180+1"]
[EndTime "9:21:42 PST"]
[Termination "Igor_Lysyj won by resignation"]

1. e4 {[%clk 0:02:52.9]} 1... e5 {[%clk 0:02:59.8]} 2. Nf3 {[%clk 0:02:50.9]}
2... Nc6 {[%clk 0:02:53.5]} 3. Bb5 {[%clk 0:02:43.8]} 3... a6 {[%clk 0:02:53.2]}
4. Ba4 {[%clk 0:02:43.2]} 4... Nf6 {[%clk 0:02:53.1]} 5. O-O {[%clk 0:02:42.7]}
5... Nxe4 {[%clk 0:02:53]} 6. d4 {[%clk 0:02:36.6]} 6... b5 {[%clk 0:02:52.8]}
7. Bb3 {[%clk 0:02:36.9]} 7... d5 {[%clk 0:02:52.7]} 8. dxe5 {[%clk 0:02:37.4]}
8... Be6 {[%clk 0:02:52.3]} 9. c3 {[%clk 0:02:31.6]} 9... Be7 {[%clk 0:02:50.6]}
10. Nbd2 {[%clk 0:02:23.3]} 10... Qd7 {[%clk 0:02:49.4]} 11. Bc2 {[%clk
0:02:17.7]} 11... Bf5 {[%clk 0:02:48.3]} 12. Nb3 {[%clk 0:02:14.5]} 12... Bg6
{[%clk 0:02:45.5]} 13. Be3 {[%clk 0:02:05.7]} 13... O-O {[%clk 0:02:29.3]} 14.
Nfd4 {[%clk 0:01:50.1]} 14... Nxe5 {[%clk 0:02:27.5]} 15. f3 {[%clk 0:01:28.6]}
15... Nc4 {[%clk 0:02:21.8]} 16. Bf4 {[%clk 0:01:07]} 16... Nf6 {[%clk
0:02:15.4]} 17. Bxg6 {[%clk 0:01:06.6]} 17... hxg6 {[%clk 0:02:15.1]} 18. Qc1
{[%clk 0:00:56.5]} 18... c5 {[%clk 0:02:10.3]} 19. Nc2 {[%clk 0:00:52.5]} 19...
Qc6 {[%clk 0:02:05]} 20. Nd2 {[%clk 0:00:50.6]} 20... Rfe8 {[%clk 0:02:02]} 21.
Nxc4 {[%clk 0:00:49]} 21... bxc4 {[%clk 0:02:01.5]} 22. Re1 {[%clk 0:00:46.3]}
22... Bd6 {[%clk 0:01:59.6]} 23. Bxd6 {[%clk 0:00:44.6]} 23... Qxd6 {[%clk
0:01:59.8]} 24. Qd2 {[%clk 0:00:43.8]} 24... Qb6 {[%clk 0:01:50.3]} 25. Rab1
{[%clk 0:00:39.3]} 25... Rad8 {[%clk 0:01:48.2]} 26. Kh1 {[%clk 0:00:34.4]}
26... Rxe1+ {[%clk 0:01:45.7]} 27. Nxe1 {[%clk 0:00:31.8]} 27... d4 {[%clk
0:01:45.6]} 28. Nc2 {[%clk 0:00:28.4]} 28... Qa5 {[%clk 0:01:39.1]} 29. a3
{[%clk 0:00:21]} 29... Nd5 {[%clk 0:01:29.4]} 30. Rd1 {[%clk 0:00:15.6]} 30...
d3 {[%clk 0:01:29.8]} 31. Ne3 {[%clk 0:00:12.9]} 31... Nxe3 {[%clk 0:01:27.2]}
32. Qxe3 {[%clk 0:00:13.8]} 32... Qa4 {[%clk 0:01:26.1]} 33. Rd2 {[%clk
0:00:09.2]} 33... Re8 {[%clk 0:01:23.9]} 34. Qf2 {[%clk 0:00:09.8]} 34... Qc6
{[%clk 0:01:14.7]} 35. h3 {[%clk 0:00:10.3]} 35... a5 {[%clk 0:01:13.8]} 36. Rd1
{[%clk 0:00:10.1]} 36... a4 {[%clk 0:01:12.7]} 37. Rd2 {[%clk 0:00:08.8]} 37...
Re5 {[%clk 0:01:07.3]} 38. Qg3 {[%clk 0:00:06.1]} 38... Qe6 {[%clk 0:01:05.7]}
39. Kh2 {[%clk 0:00:05.8]} 39... Re2 {[%clk 0:00:59.1]} 40. Qb8+ {[%clk
0:00:05.7]} 40... Kh7 {[%clk 0:00:58.8]} 41. Qf4 {[%clk 0:00:06.6]} 41... Qe5
{[%clk 0:00:44.6]} 42. Qxe5 {[%clk 0:00:05.3]} 42... Rxe5 {[%clk 0:00:44.7]} 43.
Kg3 {[%clk 0:00:05.1]} 43... Re1 {[%clk 0:00:33.4]} 44. Kf2 {[%clk 0:00:04.7]}
44... Rc1 {[%clk 0:00:32.6]} 45. Ke3 {[%clk 0:00:02.1]} 45... g5 {[%clk
0:00:24.2]} 46. Kf2 {[%clk 0:00:02.6]} 46... f5 {[%clk 0:00:20.2]} 47. Ke3
{[%clk 0:00:02.8]} 47... f4+ {[%clk 0:00:19.1]} 48. Kf2 {[%clk 0:00:03.3]} 48...
Kg6 {[%clk 0:00:13.4]} 49. g4 {[%clk 0:00:03]} 49... fxg3+ {[%clk 0:00:12.5]}
50. Kxg3 {[%clk 0:00:03.1]} 50... Rc2 {[%clk 0:00:11.8]} 51. Rd1 {[%clk
0:00:03.3]} 51... Rxb2 {[%clk 0:00:11.8]} 52. f4 {[%clk 0:00:04]} 52... Rb3
{[%clk 0:00:07.9]} 53. Kf3 {[%clk 0:00:03.8]} 53... gxf4 {[%clk 0:00:08.1]} 54.
Kxf4 {[%clk 0:00:03.6]} 54... Rxc3 {[%clk 0:00:08.4]} 55. Ke4 {[%clk 0:00:04.1]}
55... Rxa3 {[%clk 0:00:08.2]} 56. Kd5 {[%clk 0:00:04.1]} 56... Rc3 {[%clk
0:00:07.8]} 57. Kxc5 {[%clk 0:00:03.7]} 57... Rc2 {[%clk 0:00:08]} 58. Kb4
{[%clk 0:00:03.9]} 58... d2 {[%clk 0:00:08.4]} 59. Kxa4 {[%clk 0:00:04.1]} 59...
c3 {[%clk 0:00:09]} 0-1

[Event "Early-Titled-Tuesday-Blitz-February-13-2024"]
[Site "Chess.com"]
[Date "2024.02.13"]
[Round "7"]
[White "AttilaTurzo"]
[Black "GaiozNigalidze"]
[Result "0-1"]
[WhiteElo "2475"]
[BlackElo "2680"]
[TimeControl "180+1"]
[EndTime "9:21:43 PST"]
[Termination "GaiozNigalidze won on time"]

1. d4 {[%clk 0:02:57.2]} 1... Nf6 {[%clk 0:02:59.7]} 2. Bf4 {[%clk 0:02:54.7]}
2... b5 {[%clk 0:02:58.5]} 3. c3 {[%clk 0:02:52.1]} 3... Bb7 {[%clk 0:02:58.1]}
4. Nd2 {[%clk 0:02:52.6]} 4... e6 {[%clk 0:02:57.8]} 5. Qc2 {[%clk 0:02:46.8]}
5... c5 {[%clk 0:02:56.8]} 6. e3 {[%clk 0:02:40.6]} 6... Be7 {[%clk 0:02:56.8]}
7. Ngf3 {[%clk 0:02:37.5]} 7... a6 {[%clk 0:02:57]} 8. Bd3 {[%clk 0:02:33.6]}
8... O-O {[%clk 0:02:50.5]} 9. e4 {[%clk 0:02:33.2]} 9... h6 {[%clk 0:02:46]}
10. O-O {[%clk 0:02:30.3]} 10... Nc6 {[%clk 0:02:42.9]} 11. dxc5 {[%clk
0:02:24.6]} 11... Bxc5 {[%clk 0:02:42]} 12. Rad1 {[%clk 0:02:15.5]} 12... Rc8
{[%clk 0:02:41.9]} 13. h3 {[%clk 0:02:11.4]} 13... d5 {[%clk 0:02:23.5]} 14.
exd5 {[%clk 0:02:05.8]} 14... Nxd5 {[%clk 0:02:21.6]} 15. Bg3 {[%clk 0:02:02.4]}
15... Kh8 {[%clk 0:02:02.1]} 16. Ne4 {[%clk 0:01:56.2]} 16... Be7 {[%clk
0:01:59.4]} 17. Qe2 {[%clk 0:01:53.7]} 17... Qb6 {[%clk 0:01:53.5]} 18. a3
{[%clk 0:01:47.7]} 18... Rcd8 {[%clk 0:01:50.6]} 19. Ne5 {[%clk 0:01:47.3]}
19... Nxe5 {[%clk 0:01:48.9]} 20. Bxe5 {[%clk 0:01:47.5]} 20... f5 {[%clk
0:01:17.6]} 21. Qh5 {[%clk 0:01:33.3]} 21... Kh7 {[%clk 0:01:09.7]} 22. Nd2
{[%clk 0:01:10.3]} 22... Ne3 {[%clk 0:00:36.3]} 23. Bd4 {[%clk 0:00:58.2]} 23...
Rxd4 {[%clk 0:00:31.3]} 24. cxd4 {[%clk 0:00:59.1]} 24... Nxd1 {[%clk
0:00:28.3]} 25. Rxd1 {[%clk 0:00:52.4]} 25... Qxd4 {[%clk 0:00:27.9]} 26. Nf3
{[%clk 0:00:51.9]} 26... Qxb2 {[%clk 0:00:26.4]} 27. Nh4 {[%clk 0:00:48.6]}
27... Qf6 {[%clk 0:00:21.8]} 28. g3 {[%clk 0:00:43.5]} 28... g6 {[%clk 0:00:21]}
29. Qe2 {[%clk 0:00:43.4]} 29... Rd8 {[%clk 0:00:20.8]} 30. Nf3 {[%clk
0:00:39.5]} 30... Bxa3 {[%clk 0:00:20.5]} 31. Ne5 {[%clk 0:00:39.3]} 31... Be7
{[%clk 0:00:18.7]} 32. f4 {[%clk 0:00:36.1]} 32... Bd6 {[%clk 0:00:17.3]} 33.
Bc2 {[%clk 0:00:28.7]} 33... Bxe5 {[%clk 0:00:16.6]} 34. Rxd8 {[%clk 0:00:28.4]}
34... Bd4+ {[%clk 0:00:16.9]} 35. Rxd4 {[%clk 0:00:26.7]} 35... Qxd4+ {[%clk
0:00:17.1]} 36. Kh2 {[%clk 0:00:22.3]} 36... Bd5 {[%clk 0:00:17.3]} 37. Bd3
{[%clk 0:00:15.3]} 37... Bc4 {[%clk 0:00:11.1]} 38. Bxc4 {[%clk 0:00:14.1]}
38... Qxc4 {[%clk 0:00:10.7]} 39. Qe5 {[%clk 0:00:13.4]} 39... Qc2+ {[%clk
0:00:04.5]} 40. Kg1 {[%clk 0:00:12.9]} 40... Qc6 {[%clk 0:00:05.2]} 41. Qf6
{[%clk 0:00:11.6]} 41... Qd7 {[%clk 0:00:05.2]} 42. h4 {[%clk 0:00:10.4]} 42...
h5 {[%clk 0:00:04.9]} 43. Qe5 {[%clk 0:00:08.3]} 43... b4 {[%clk 0:00:05.2]} 44.
Qb8 {[%clk 0:00:08.3]} 44... Qd4+ {[%clk 0:00:03.7]} 45. Kh2 {[%clk 0:00:08.1]}
45... a5 {[%clk 0:00:04.4]} 46. Qc7+ {[%clk 0:00:06.9]} 46... Qg7 {[%clk
0:00:05]} 47. Qxa5 {[%clk 0:00:06.8]} 47... b3 {[%clk 0:00:05.6]} 48. Qb6 {[%clk
0:00:06.5]} 48... b2 {[%clk 0:00:06.1]} 49. Qb8 {[%clk 0:00:07.2]} 49... Kh6
{[%clk 0:00:05.7]} 50. Kh3 {[%clk 0:00:07]} 50... Qf6 {[%clk 0:00:06.3]} 51. Kh2
{[%clk 0:00:06.3]} 51... Kh7 {[%clk 0:00:06.5]} 52. Qb7+ {[%clk 0:00:05.9]}
52... Kh6 {[%clk 0:00:06.9]} 53. Qb8 {[%clk 0:00:06.1]} 53... Qc3 {[%clk
0:00:06.9]} 54. Qf8+ {[%clk 0:00:05.4]} 54... Kh7 {[%clk 0:00:07.4]} 55. Qe7+
{[%clk 0:00:04.4]} 55... Qg7 {[%clk 0:00:07.9]} 56. Qb4 {[%clk 0:00:04.2]} 56...
e5 {[%clk 0:00:08]} 57. fxe5 {[%clk 0:00:03.6]} 57... Qxe5 {[%clk 0:00:07.9]}
58. Qb7+ {[%clk 0:00:03.6]} 58... Kh6 {[%clk 0:00:08.3]} 59. Kh3 {[%clk
0:00:03.6]} 59... f4 {[%clk 0:00:08.6]} 60. gxf4 {[%clk 0:00:02.8]} 60... Qe3+
{[%clk 0:00:08.8]} 61. Kg2 {[%clk 0:00:01.7]} 61... Qe2+ {[%clk 0:00:09.3]} 0-1

[Event "Early-Titled-Tuesday-Blitz-February-13-2024"]
[Site "Chess.com"]
[Date "2024.02.13"]
[Round "7"]
[White "Storne89"]
[Black "Abund"]
[Result "0-1"]
[WhiteElo "2582"]
[BlackElo "2763"]
[TimeControl "180+1"]
[EndTime "9:21:50 PST"]
[Termination "Abund won on time"]

1. d4 {[%clk 0:03:00.9]} 1... d5 {[%clk 0:03:00.1]} 2. Nf3 {[%clk 0:03:00.7]}
2... Nf6 {[%clk 0:03:00.3]} 3. c3 {[%clk 0:03:00.5]} 3... e6 {[%clk 0:02:58.4]}
4. Bf4 {[%clk 0:03:00.7]} 4... Bd6 {[%clk 0:02:58.4]} 5. e3 {[%clk 0:03:00.9]}
5... O-O {[%clk 0:02:57.2]} 6. Nbd2 {[%clk 0:03:00.9]} 6... c5 {[%clk
0:02:56.9]} 7. Bd3 {[%clk 0:02:59.4]} 7... Bxf4 {[%clk 0:02:50.2]} 8. exf4
{[%clk 0:02:59.3]} 8... Qd6 {[%clk 0:02:47.4]} 9. g3 {[%clk 0:02:58.6]} 9... b6
{[%clk 0:02:46.2]} 10. O-O {[%clk 0:02:29.9]} 10... Ba6 {[%clk 0:02:40.9]} 11.
Bxa6 {[%clk 0:02:29.2]} 11... Nxa6 {[%clk 0:02:41.8]} 12. Ne5 {[%clk 0:02:29.4]}
12... cxd4 {[%clk 0:02:38.8]} 13. cxd4 {[%clk 0:02:28.8]} 13... Qb4 {[%clk
0:02:29.6]} 14. Nb3 {[%clk 0:02:19.6]} 14... Rac8 {[%clk 0:02:28.9]} 15. Qd3
{[%clk 0:02:12.4]} 15... Nb8 {[%clk 0:02:27.2]} 16. Rac1 {[%clk 0:02:12.4]}
16... g6 {[%clk 0:02:20.8]} 17. a3 {[%clk 0:02:09.3]} 17... Qa4 {[%clk
0:02:16.7]} 18. Nd2 {[%clk 0:02:08.7]} 18... Kg7 {[%clk 0:01:57.5]} 19. h4
{[%clk 0:02:07.3]} 19... h5 {[%clk 0:01:57.1]} 20. Kg2 {[%clk 0:02:05.4]} 20...
Rfd8 {[%clk 0:01:50.2]} 21. Ndf3 {[%clk 0:02:01.8]} 21... Ne4 {[%clk 0:01:39.4]}
22. Ng5 {[%clk 0:01:42.3]} 22... Nxg5 {[%clk 0:01:26.1]} 23. fxg5 {[%clk
0:01:38.3]} 23... Nd7 {[%clk 0:01:11.6]} 24. Nf3 {[%clk 0:01:27.6]} 24... a6
{[%clk 0:00:43.5]} 25. Qe3 {[%clk 0:01:27]} 25... Qb5 {[%clk 0:00:42.4]} 26. Qf4
{[%clk 0:01:15.6]} 26... Qxb2 {[%clk 0:00:38.5]} 27. Rc7 {[%clk 0:01:15.1]}
27... Qxa3 {[%clk 0:00:33.2]} 28. Rfc1 {[%clk 0:01:08.5]} 28... Rxc7 {[%clk
0:00:29.5]} 29. Rxc7 {[%clk 0:01:07.4]} 29... Kg8 {[%clk 0:00:20.8]} 30. Rb7
{[%clk 0:00:43.1]} 30... a5 {[%clk 0:00:20]} 31. Qc7 {[%clk 0:00:40.7]} 31...
Qf8 {[%clk 0:00:18.9]} 32. Qc6 {[%clk 0:00:34.2]} 32... Qe8 {[%clk 0:00:16.5]}
33. Ra7 {[%clk 0:00:29.5]} 33... Kg7 {[%clk 0:00:13.4]} 34. Ne1 {[%clk
0:00:24.7]} 34... Kg8 {[%clk 0:00:12.3]} 35. Nd3 {[%clk 0:00:23.6]} 35... Nf6
{[%clk 0:00:11.8]} 36. Qxb6 {[%clk 0:00:21.1]} 36... Ng4 {[%clk 0:00:09.9]} 37.
Nf4 {[%clk 0:00:13.9]} 37... Rb8 {[%clk 0:00:07.3]} 38. Qxa5 {[%clk 0:00:13.7]}
38... Rd8 {[%clk 0:00:04]} 39. Qc7 {[%clk 0:00:13.3]} 39... Rc8 {[%clk 0:00:04]}
40. Qb7 {[%clk 0:00:12.9]} 40... Rb8 {[%clk 0:00:04.5]} 41. Qc7 {[%clk
0:00:13.3]} 41... Rc8 {[%clk 0:00:05]} 42. Qa5 {[%clk 0:00:13.4]} 42... Kg7
{[%clk 0:00:03.4]} 43. Nd3 {[%clk 0:00:13.7]} 43... Rc2 {[%clk 0:00:03.3]} 44.
Qb6 {[%clk 0:00:06.2]} 44... Qc8 {[%clk 0:00:02.5]} 45. Qd6 {[%clk 0:00:04.6]}
45... Qe8 {[%clk 0:00:02.7]} 46. Qf4 {[%clk 0:00:04.4]} 46... Rc3 {[%clk
0:00:02.6]} 47. Ne5 {[%clk 0:00:03.8]} 47... Nxe5 {[%clk 0:00:03.1]} 48. Qf6+
{[%clk 0:00:03.9]} 48... Kg8 {[%clk 0:00:03.2]} 49. Qxe5 {[%clk 0:00:03.6]}
49... Rc8 {[%clk 0:00:03.5]} 50. Rb7 {[%clk 0:00:03.3]} 50... Ra8 {[%clk
0:00:03.8]} 51. Rc7 {[%clk 0:00:03.1]} 51... Rc8 {[%clk 0:00:04.2]} 52. Rb7
{[%clk 0:00:03.6]} 52... Rd8 {[%clk 0:00:04.7]} 53. Qf6 {[%clk 0:00:03.5]} 53...
Rb8 {[%clk 0:00:04.8]} 54. Rc7 {[%clk 0:00:03.3]} 54... Rc8 {[%clk 0:00:05.4]}
55. Re7 {[%clk 0:00:03.6]} 55... Qf8 {[%clk 0:00:06]} 56. g4 {[%clk 0:00:03.1]}
56... hxg4 {[%clk 0:00:05.8]} 57. Kg3 {[%clk 0:00:04]} 57... Re8 {[%clk
0:00:06]} 58. Rd7 {[%clk 0:00:04]} 58... Qg7 {[%clk 0:00:06.6]} 59. Qf4 {[%clk
0:00:03.3]} 59... e5 {[%clk 0:00:07.2]} 60. dxe5 {[%clk 0:00:03.2]} 60... Rxe5
{[%clk 0:00:07.4]} 61. Rd8+ {[%clk 0:00:03.5]} 61... Kh7 {[%clk 0:00:07.7]} 62.
Rd7 {[%clk 0:00:02.6]} 62... Rf5 {[%clk 0:00:07.9]} 0-1